fUST/lending_fUST_20251227
["ID","MTS","AMOUNT","RATE_DAILY","PERIOD"]
[399863021,1766767371667,-279.86559936,0.0001502,2]
[399863022,1766767371699,-256.4948451,0.00015029,2]
[399863023,1766767371730,-500.0,0.00015029,2]
[399863024,1766767371762,-500.0,0.00015029,2]
[399863025,1766767371792,-500.0,0.00015029,2]
[399863026,1766767371822,-500.0,0.00015029,2]
[399863027,1766767371852,-200.0,0.00015029,2]
[399863028,1766767371882,-500.0,0.00015029,2]
[399863029,1766767371914,-500.0,0.00015029,2]
[399863030,1766767371944,-500.0,0.00015029,2]
[399863031,1766767371975,-500.0,0.00015029,2]
[399863032,1766767372004,-27.28911108,0.00015029,2]
[399863033,1766767372097,-472.71088892,0.00015029,2]
[399863034,1766767372127,-174.56385545,0.00015029,2]
[399863035,1766767372972,-203.67470913,0.0001503,2]
[399863036,1766767373001,-472.71088892,0.0001503,2]
[399863037,1766767373024,-174.56385545,0.00014928,2]
[399863038,1766767373063,-8705.46051126,0.00014928,2]
[399863039,1766767376900,-1276.18287178,0.00014928,2]
[399863040,1766767376944,-7447.64425644,0.0001503,2]
[399863041,1766767376958,-10000.01,0.0001503,2]
[399863042,1766767377009,-10000.01,0.0001503,2]
[399863043,1766767377155,-10000.01,0.0001503,2]
[399863044,1766767377276,-10000.01,0.0001503,2]
[399863045,1766767402118,5000.0,0.00014802,2]
[399863046,1766767407579,275.20916638,7.961e-05,2]
[399863047,1766767408146,275.20916638,0.00013589,2]
[399863048,1766767411252,150.0,0.00011671,2]
[399863049,1766767411657,150.0,0.00012227,2]
[399863050,1766767412066,150.0,0.00012783,2]
[399863051,1766767412473,150.0,0.00013339,2]
[399863052,1766767412921,150.0,0.00013894,2]
[399863053,1766767413343,150.0,0.0001445,2]
[399863054,1766767481094,2952.12,0.0001439,2]
[399863055,1766767481126,150.0,9.292e-05,2]
[399863056,1766767481439,150.0,9.734e-05,2]
[399863057,1766767481845,150.0,0.00010177,2]
[399863058,1766767482227,150.0,0.00010619,2]
[399863059,1766767482612,150.0,0.00011062,2]
[399863060,1766767504347,202.70382112,0.00013273,2]
[399863061,1766767507349,641.96745013,0.00013273,2]
[399863062,1766767515423,300.0,0.00013673,2]
[399863063,1766767563788,500.0,0.00013273,2]
[399863064,1766767563842,500.0,0.00013821,2]
[399863065,1766767621493,-5000.0,0.00014707,2]
[399863066,1766767623576,0.01,0.00013273,2]
[399863067,1766767623599,171.79350721,0.00013273,2]
[399863068,1766767623647,500.0,0.00013273,2]
[399863069,1766767625985,500.0,0.00013273,2]
[399863070,1766767626819,500.0,0.00013273,2]
[399863071,1766767626856,500.0,0.00013273,2]
[399863072,1766767638126,-5000.0,0.00014867,2]
[399863073,1766767638149,-300.0,0.00015017,2]
[399863074,1766767638172,-500.0,0.00015018,2]
[399863075,1766767638195,-500.0,0.00015018,2]
[399863076,1766767638219,-500.0,0.00015018,2]
[399863077,1766767638245,-500.0,0.00015018,2]
[399863078,1766767638270,-500.0,0.00015018,2]
[399863079,1766767638296,-500.0,0.00015018,2]
[399863080,1766767638320,-500.0,0.00015018,2]
[399863081,1766767638343,-500.0,0.00015018,2]
[399863082,1766767638365,-500.0,0.00015018,2]
[399863083,1766767638386,-500.0,0.00015018,2]
[399863084,1766767638409,-500.0,0.00015018,2]
[399863085,1766767638431,-500.0,0.00015018,2]
[399863086,1766767638454,-500.0,0.00015018,2]
[399863087,1766767638480,-500.0,0.00015018,2]
[399863088,1766767638503,-500.0,0.00015018,2]
[399863089,1766767638525,-500.0,0.00015018,2]
[399863090,1766767638546,-500.0,0.00015018,2]
[399863091,1766767638569,-500.0,0.00015018,2]
[399863092,1766767638595,-371.46405316,0.00015018,2]
[399863093,1766767638618,-500.0,0.00015018,2]
[399863094,1766767638641,-347.50210014,0.00015018,2]
[399863095,1766767638666,-500.0,0.00015018,2]
[399863096,1766767638693,-500.0,0.00015018,2]
[399863097,1766767638718,-500.0,0.00015018,2]
[399863098,1766767638742,-500.0,0.00015018,2]
[399863099,1766767638768,-500.0,0.00015018,2]
[399863100,1766767638789,-500.0,0.00015018,2]
[399863101,1766767638810,-500.0,0.00015018,2]
[399863102,1766767638832,-339.66912016,0.00015018,2]
[399863103,1766767638854,-500.0,0.00015018,2]
[399863104,1766767638876,-500.0,0.00015018,2]
[399863105,1766767638897,-500.0,0.00015018,2]
[399863106,1766767638919,-500.0,0.00015018,2]
[399863107,1766767638940,-500.0,0.00015018,2]
[399863108,1766767638963,-500.0,0.00015018,2]
[399863109,1766767638987,-500.0,0.00015018,2]
[399863110,1766767639010,-500.0,0.00015018,2]
[399863111,1766767639032,-500.0,0.00015018,2]
[399863112,1766767639055,-500.0,0.00015018,2]
[399863113,1766767639078,-500.0,0.00015018,2]
[399863114,1766767639102,-500.0,0.00015018,2]
[399863115,1766767639124,-500.0,0.00015018,2]
[399863116,1766767639145,-500.0,0.00015018,2]
[399863117,1766767639397,-500.0,0.00015018,2]
[399863118,1766767639421,-500.0,0.00015018,2]
[399863119,1766767639446,-500.0,0.00015018,2]
[399863120,1766767639468,-500.0,0.00015018,2]
[399863121,1766767639489,-500.0,0.00015018,2]
[399863122,1766767639511,-500.0,0.00015018,2]
[399863123,1766767639535,-500.0,0.00015018,2]
[399863124,1766767639558,-500.0,0.00015018,2]
[399863125,1766767639581,-500.0,0.00015018,2]
[399863126,1766767639609,-199.99999999,0.00015018,2]
[399863127,1766767639634,-1198.09445152,0.00015029,2]
[399863128,1766767639657,-1198.09445152,0.00015029,2]
[399863129,1766767639685,-1198.09445152,0.00015029,2]
[399863130,1766767639709,-1198.09445152,0.00015029,2]
[399863131,1766767639731,-1198.09445152,0.00015029,2]
[399863132,1766767639755,-1198.09445152,0.00015029,2]
[399863133,1766767639777,-1198.09445152,0.00015029,2]
[399863134,1766767639799,-1198.09445152,0.00015029,2]
[399863135,1766767639821,-1198.09445152,0.00015029,2]
[399863136,1766767639858,-1198.09445152,0.00015029,2]
[399863137,1766767639887,-56073.32608435,0.0001503,2]
[399863138,1766767639924,-101481.22056876,0.0001503,2]
[399863139,1766767639947,-500.0,0.00015127,2]
[399863140,1766767639969,-500.0,0.00015127,2]
[399863141,1766767639991,-500.0,0.00015129,2]
[399863142,1766767640014,-500.0,0.00015129,2]
[399863143,1766767640037,-500.0,0.00015129,2]
[399863144,1766767640058,-500.0,0.00015129,2]
[399863145,1766767640080,-500.0,0.00015129,2]
[399863146,1766767640104,-500.0,0.00015129,2]
[399863147,1766767640126,-500.0,0.00015129,2]
[399863148,1766767640148,-500.0,0.00015129,2]
[399863149,1766767640170,-500.0,0.00015129,2]
[399863150,1766767640192,-474.26302971,0.00015129,2]
[399863151,1766767640215,-500.0,0.00015531,2]
[399863152,1766767640242,-300.0,0.00015706,2]
[399863153,1766767640267,-300.0,0.00015706,2]
[399863154,1766767640291,-300.0,0.00015706,2]
[399863155,1766767640315,-300.0,0.00015706,2]
[399863156,1766767640339,-300.0,0.00015706,2]
[399863157,1766767640365,-300.0,0.00015706,2]
[399863158,1766767640395,-300.0,0.00015706,2]
[399863159,1766767640419,-300.0,0.00015706,2]
[399863160,1766767640445,-300.0,0.00015706,2]
[399863161,1766767640469,-300.0,0.00015706,2]
[399863162,1766767640494,-300.0,0.00015706,2]
[399863163,1766767640518,-300.0,0.00015706,2]
[399863164,1766767640540,-300.0,0.00015706,2]
[399863165,1766767640564,-300.0,0.00015706,2]
[399863166,1766767640586,-300.0,0.00015706,2]
[399863167,1766767640609,-600.0,0.00015706,2]
[399863168,1766767640632,-299.84391697,0.00016174,2]
[399863169,1766767640653,-420.0,0.00016435,2]
[399863170,1766767640678,-500.0,0.00016438,2]
[399863171,1766767640700,-401.04,0.00016438,2]
[399863172,1766767640724,-1041.66666667,0.0001664,2]
[399863173,1766767640746,-356.27772052,0.0001671,2]
[399863174,1766767640771,-461.67526834,0.00016743,2]
[399863175,1766767640794,-469.62171944,0.00016968,2]
[399863176,1766767640815,-416.0,0.00017153,2]
[399863177,1766767640835,-416.0,0.00017153,2]
[399863178,1766767640855,-1363.0,0.00017153,2]
[399863179,1766767640874,-2161.0,0.00017153,2]
[399863180,1766767640895,-633.0,0.00017153,2]
[399863181,1766767640915,-150.0,0.00017222,2]
[399863182,1766767640935,-150.0,0.00017222,2]
[399863183,1766767640960,-500.0,0.00017222,2]
[399863184,1766767640980,-159.25725166,0.00017222,2]
[399863185,1766767641003,-720.0,0.00017277,2]
[399863186,1766767641026,-478.75725327,0.00017291,2]
[399863187,1766767641048,-150.0,0.00017359,2]
[399863188,1766767641073,-150.0,0.00017359,2]
[399863189,1766767641096,-500.0,0.00017359,2]
[399863190,1766767641118,-150.0,0.00017496,2]
[399863191,1766767641139,-200.0,0.00017496,2]
[399863192,1766767641161,-500.0,0.00017496,2]
[399863193,1766767641183,-250.0,0.00017633,2]
[399863194,1766767641205,-500.0,0.00017633,2]
[399863195,1766767641228,-241.236,0.00017707,2]
[399863196,1766767641250,-282.41809994,0.000178,3]
[399863197,1766767641273,-447.78557493,0.00017839,2]
[399863198,1766767641297,-587.0,0.00017986,2]
[399863199,1766767641319,-300.14376089,0.00018912,2]
[399863200,1766767641346,-541.25893088,0.00018968,2]
[399863201,1766767641369,-188.71997762,0.00018982,2]
[399863202,1766767641394,-864.0,0.00019004,2]
[399863203,1766767641417,-467.43183896,0.00019141,2]
[399863204,1766767641440,-1808.2093343,0.00019178,2]
[399863205,1766767641463,-231.75,0.000192,2]
[399863206,1766767641487,-4950.11,0.000192,2]
[399863207,1766767641508,-213.82,0.000192,2]
[399863208,1766767641531,-275.48437554,0.00019216,2]
[399863209,1766767641553,-177.61630837,0.00019245,2]
[399863210,1766767641577,-215.95716983,0.00019505,2]
[399863211,1766767641600,-823.0,0.00019685,2]
[399863212,1766767641622,-841.37731013,0.00019695,2]
[399863213,1766767641645,-250.0,0.00019858,2]
[399863214,1766767641668,-199.77065826,0.00019991,2]
[399863215,1766767641694,-151.51515152,0.0002,2]
[399863216,1766767641717,-150.0,0.0002,5]
[399863217,1766767641739,-150.0,0.0002,10]
[399863218,1766767641762,-416.0,0.00020153,2]
[399863219,1766767641784,-316.82865849,0.00020153,2]
[399863220,1766767646078,-150.0,0.00017222,2]
[399863221,1766767646100,-150.0,0.00017359,2]
[399863222,1766767646122,-200.0,0.00017496,2]
[399863223,1766767646144,-99.17134151,0.00020153,2]
[399863224,1766767646167,-1363.0,0.00020153,2]
[399863225,1766767646189,-2161.0,0.00020153,2]
[399863226,1766767646211,-633.0,0.00020153,2]
[399863227,1766767646234,-388.7229057,0.00020233,2]
[399863228,1766767646258,-1495.78188467,0.0002025,2]
[399863229,1766767646281,-306.45486031,0.00020256,2]
[399863230,1766767646302,-190.3271968,0.00020699,2]
[399863231,1766767646324,-2337.1591948,0.00020806,2]
[399863232,1766767646346,-230.8334742,0.00020872,2]
[399863233,1766767646368,-1000.0,0.00020905,2]
[399863234,1766767646390,-691.06294346,0.00020961,2]
[399863235,1766767646413,-612.89614232,0.00020968,2]
[399863236,1766767646434,-350.23412607,0.00020989,2]
[399863237,1766767646455,-3365.50924051,0.0002136,2]
[399863238,1766767646478,-359.22759768,0.00021386,2]
[399863239,1766767646500,-1152.0,0.00021543,2]
[399863240,1766767646521,-282.37,0.00021556,3]
[399863241,1766767646542,-1079.78584916,0.00021689,2]
[399863242,1766767646562,-547.24082198,0.00021721,2]
[399863243,1766767646583,-500.0,0.00021856,7]
[399863244,1766767646604,-150.0,0.00021918,2]
[399863245,1766767646624,-1471.86,0.00022,7]
[399863246,1766767646646,-5000.0,0.00022252,2]
[399863247,1766767646667,-300.0,0.00022466,2]
[399863248,1766767646693,-500.0,0.00022952,7]
[399863249,1766767646716,-684.53335376,0.00022967,2]
[399863250,1766767646739,-1000.0,0.00022995,10]
[399863251,1766767646762,-244.0,0.00022995,10]
[399863252,1766767646782,-231.75,0.00023,7]
[399863253,1766767646804,-4950.11,0.00023,14]
[399863254,1766767646825,-213.82,0.00023,7]
[399863255,1766767646846,-450.0,0.00023014,2]
[399863256,1766767646872,-2044.21309992,0.0002303,2]
[399863257,1766767646892,-1024.0,0.000231,2]
[399863258,1766767646913,-416.0,0.00023153,2]
[399863259,1766767646934,-416.0,0.00023153,2]
[399863260,1766767646955,-1363.0,0.00023153,2]
[399863261,1766767647184,-2161.0,0.00023153,2]
[399863262,1766767647206,-633.0,0.00023153,2]
[399863263,1766767647226,-3289.5901271,0.00023203,2]
[399863264,1766767647247,-3313.1819923,0.00023203,2]
[399863265,1766767647269,-17306.4443762,0.00023272,2]
[399863266,1766767647291,-28219.8869657,0.00023272,2]
[399863267,1766767647313,-315.6603742,0.00023425,2]
[399863268,1766767647334,-155.4633356,0.00023425,2]
[399863269,1766767647355,-174.2814644,0.00023425,2]
[399863270,1766767647376,-177.61630837,0.00023462,2]
[399863271,1766767647397,-709312.12289152,0.000235,2]
[399863272,1766767651125,-83313.848754,0.000235,2]
[399863273,1766767683482,500.0,0.00013273,2]
[399863274,1766767684716,500.0,0.00013273,2]
[399863275,1766767755492,605.2641866,0.0003013,120]
[399863303,1766767832187,-494.9555582,0.00016986,2]
[399863304,1766767832240,-173.0444418,0.00016986,2]
[399863305,1766767832251,-343.85861491,0.00019421,2]
[399863306,1766767832261,-1041.66666667,0.00019421,2]
[399863307,1766767832270,-303.03030302,0.00020052,4]
[399863308,1766767832280,-405.7531656,0.00021421,2]
[399863309,1766767832291,-500.0,0.00021856,7]
[399863310,1766767832300,-150.0,0.00021918,2]
[399863311,1766767832311,-300.0,0.00022466,2]
[399863312,1766767832322,-5000.0,0.00022671,2]
[399863313,1766767832331,-300.0,0.00022898,2]
[399863314,1766767832341,-135.27539941,0.00022899,2]
[399863315,1766767832354,-364.72460059,0.00022899,2]
[399863316,1766767832364,-207.94045035,0.00022899,2]
[399863317,1766767832374,-482.1854578,0.00022899,2]
[399863318,1766767832384,-84.19738622,0.00022899,2]
[399863319,1766767832397,-400.55282379,0.00022899,2]
[399863320,1766767832407,-20.79650394,0.00022899,2]
[399863321,1766767832419,-479.20349606,0.00022899,2]
[399863322,1766767832430,-500.0,0.00022899,2]
[399863323,1766767832439,-2814.26602683,0.000229,2]
[399863324,1766767832451,-354.80157133,0.000229,2]
[399863325,1766767832464,-1000.0,0.000229,2]
[399863326,1766767832492,-407.03070456,0.000229,2]
[399863327,1766767833135,-4310.58303095,0.000229,2]
[399863328,1766767833145,-450.0,0.00023014,2]
[399863329,1766767833156,-1362.80873328,0.0002303,2]
[399863330,1766767833166,-300.0,0.00023357,10]
[399863331,1766767833176,-300.0,0.00023357,10]
[399863332,1766767833186,-300.0,0.00023357,10]
[399863333,1766767833196,-300.0,0.00023357,10]
[399863334,1766767833206,-300.0,0.00023357,10]
[399863335,1766767833217,-300.0,0.00023357,10]
[399863336,1766767833227,-300.0,0.00023357,10]
[399863337,1766767833238,-300.0,0.00023357,10]
[399863338,1766767833248,-300.0,0.00023357,10]
[399863339,1766767833258,-300.0,0.00023357,10]
[399863340,1766767833275,-300.0,0.00023357,10]
[399863341,1766767833289,-300.0,0.00023357,10]
[399863342,1766767833303,-300.0,0.00023357,10]
[399863343,1766767833317,-300.0,0.00023357,10]
[399863344,1766767833331,-300.0,0.00023357,10]
[399863345,1766767833344,-389.15333277,0.00023421,2]
[399863347,1766767838691,-2588.80945567,0.00016981,2]
[399863348,1766767838703,-150.0,0.00017153,2]
[399863349,1766767838716,-78.49438351,0.00023421,2]
[399863350,1766767838733,-6439.79046682,0.000235,2]
[399863351,1766767838749,-1251.64436597,0.000235,2]
[399863352,1766767838764,-73472.89731423,0.000235,2]
[399863353,1766767838780,-27510.25761913,0.000235,2]
[399863354,1766767838795,-19766.23257257,0.000235,2]
[399863355,1766767838808,-654.9951654,0.000235,2]
[399863356,1766767838821,-3821.97617758,0.000235,2]
[399863357,1766767838835,-2012.70208524,0.000235,2]
[399863358,1766767838849,-4082.11870766,0.000235,2]
[399863359,1766767839390,-89462.59020758,0.000235,2]
[399863360,1766767839408,-2152.23329974,0.000235,2]
[399863361,1766767839423,-500.0,0.000235,2]
[399863369,1766767840581,-436.755,0.00016986,2]
[399863370,1766767840596,-38.245,0.00016986,2]
[399863371,1766767840608,-8852.91122856,0.000235,2]
[399863372,1766767840635,-827.87230324,0.000235,2]
[399863374,1766767841513,-15738.228505,0.000235,2]
[399863388,1766767844400,-187390.47699,0.000235,2]
[399863390,1766767844452,-260126.75778281,0.000235,2]
[399863417,1766767846512,-860.28587217,0.000235,2]
[399863418,1766767846528,-8732.9,0.000235,2]
[399863419,1766767846621,-1479.77408064,0.000235,2]
[399863420,1766767874902,263.40838833,7.961e-05,2]
[399863421,1766767875403,263.40838833,0.0001288,2]
[399863422,1766767882501,395.25989123,7.961e-05,2]
[399863423,1766767883167,395.25989123,0.0001288,2]
[399863424,1766767924644,642.80153921,0.00013273,2]
[399863425,1766767929578,150.0,0.00012147,2]
[399863426,1766767929989,178.58,0.00012725,2]
[399863427,1766767930393,267.86,0.00013304,2]
[399863428,1766767930859,357.15,0.00013882,2]
[399863429,1766767937751,500.0,0.00013273,2]
[399863430,1766767937956,500.98635195,0.00013273,2]
[399863431,1766767938171,500.0,0.00013273,2]
[399863432,1766767939980,-446.44,0.00014461,2]
[399863434,1766767983635,500.0,0.00013273,2]
[399863435,1766767983803,500.39740459,0.00013273,2]
[399863436,1766767985919,559.97911691,0.00013821,2]
[399863437,1766767985958,500.0,0.00013273,2]
[399863438,1766767986187,1000.0,0.00013821,2]
[399863439,1766767986220,500.0,0.00013273,2]
[399863440,1766767986255,599.15226769,0.00014368,2]
[399863441,1766767986787,158.29641501,0.00013273,2]
[399863442,1766767989347,500.0,0.00013273,2]
[399863443,1766767989519,500.0,0.00013273,2]
[399863444,1766767989547,500.0,0.00013273,2]
[399863445,1766767992812,310.03517576,0.00013273,2]
[399863446,1766767994123,500.0,0.00013273,2]
[399863447,1766767995808,300.0,0.00013673,2]
[399863448,1766767999957,500.0,0.00013273,2]
[399863449,1766768001741,500.0,0.00013273,2]
[399863450,1766768002692,500.0,0.00013273,2]
[399863451,1766768003154,500.0,0.00013273,2]
[399863452,1766768003184,179.26962004,0.00013273,2]
[399863453,1766768003208,320.73037996,0.00013273,2]
[399863454,1766768003244,500.0,0.00013273,2]
[399863455,1766768003297,500.0,0.00013273,2]
[399863456,1766768003652,500.0,0.00013273,2]
[399863457,1766768007499,150.0,0.00010656,2]
[399863458,1766768007949,150.0,0.00011163,2]
[399863459,1766768008362,214.41,0.00011671,2]
[399863460,1766768008778,285.88,0.00012178,2]
[399863461,1766768009189,357.35,0.00012686,2]
[399863462,1766768009602,428.82,0.00013193,2]
[399863463,1766768010016,500.29,0.00013701,2]
[399863464,1766768010442,571.75,0.00014208,2]
[399863465,1766768016008,-643.22,0.00014715,2]
[399863468,1766768084299,150.0,9.377e-05,2]
[399863469,1766768084749,150.0,9.824e-05,2]
[399863470,1766768085647,150.0,0.00010271,2]
[399863471,1766768086101,150.0,0.00010717,2]
[399863472,1766768086503,150.0,0.00011164,2]
[399863473,1766768087011,176.68,0.0001161,2]
[399863474,1766768087428,206.13,0.00012057,2]
[399863475,1766768087879,235.58,0.00012503,2]
[399863476,1766768088319,265.03,0.0001295,2]
[399863477,1766768088727,294.47,0.00013396,2]
[399863478,1766768154645,150.0,9.384e-05,2]
[399863479,1766768155057,150.0,9.831e-05,2]
[399863480,1766768165558,500.0,0.00013273,2]
[399863481,1766768223585,500.0,0.00013273,2]
[399863482,1766768224993,471.7822487,0.00013273,2]
[399863483,1766768226368,500.0,0.00013273,2]
[399863484,1766768226768,500.0,0.00013273,2]
[399863485,1766768284137,410.33107016,0.00013273,2]
[399863486,1766768343885,500.0,0.00013273,2]
[399863487,1766768343938,500.0,0.00013273,2]
[399863488,1766768347261,500.0,0.00013273,2]
[399863489,1766768404732,500.0,0.00013699,2]
[399863491,1766768463603,503.39278923,0.00013273,2]
[399863492,1766768464042,500.0,0.00013273,2]
[399863493,1766768464492,-5000.0,0.00014718,2]
[399863494,1766768478037,0.01,0.00014718,2]
[399863495,1766768478061,4999.99,0.00014718,2]
[399863496,1766768512112,-5000.0,0.00014718,2]
[399863497,1766768525259,0.01,0.00014718,2]
[399863498,1766768525287,4999.99,0.00014718,2]
[399863499,1766768557883,-5000.0,0.00014718,2]
[399863500,1766768583234,500.0,0.00013273,2]
[399863501,1766768583260,500.0,0.00013273,2]
[399863502,1766768583292,171.80350721,0.00013821,2]
[399863503,1766768584198,395.2536569,7.961e-05,2]
[399863504,1766768584875,395.2536569,0.00011088,2]
[399863505,1766768585577,395.2536569,0.00014215,2]
[399863506,1766768665332,-3778.81522975,0.00014718,2]
[399863507,1766768736877,1572.6034984,0.00014099,2]
[399863508,1766768873961,999.0,0.00014065,2]
[399863509,1766768880055,233.88,6.46e-05,2]
[399863513,1766768944947,483.51126369,0.00013273,2]
[399863514,1766768949151,-634.0,0.00014867,2]
[399863515,1766768949174,-339.30738863,0.00014905,2]
[399863516,1766768949194,-530.07316943,0.00015017,2]
[399863517,1766768949215,-500.0,0.00015018,2]
[399863518,1766768949238,-524.17649869,0.00015018,2]
[399863519,1766768949259,-520.18644978,0.00015029,2]
[399863520,1766768949281,-300.0,0.0001506,2]
[399863521,1766768949302,-10168.34479521,0.00015061,2]
[399863522,1766768949322,-1023.39779363,0.00015062,2]
[399863523,1766768949344,-164.97224556,0.00015159,2]
[399863524,1766768949365,-500.0,0.00015159,2]
[399863525,1766768949385,-302.29063319,0.00015159,2]
[399863526,1766768949407,-853.19959517,0.00015159,2]
[399863527,1766768949428,-853.19959517,0.00015159,2]
[399863528,1766768949449,-369.16402676,0.00015159,2]
[399863529,1766768955140,-4.38197992,0.00015159,2]
[399863530,1766768955164,-853.19959517,0.00015159,2]
[399863531,1766768955185,-853.19959517,0.00015159,2]
[399863532,1766768955208,-853.19959517,0.00015159,2]
[399863533,1766768955230,-853.19959517,0.00015159,2]
[399863534,1766768955252,-853.19959517,0.00015159,2]
[399863535,1766768955272,-853.19959517,0.00015159,2]
[399863536,1766768955293,-853.19959517,0.00015159,2]
[399863537,1766768955314,-853.19959517,0.00015159,2]
[399863538,1766768955335,-853.19959517,0.00015159,2]
[399863539,1766768955355,-146.06760391,0.00015159,2]
[399863559,1766769032414,-750.31749729,0.000149,12]
[399863560,1766769032427,-300.0,0.00015158,2]
[399863561,1766769032440,-707.13199126,0.00015159,2]
[399863562,1766769032452,-853.19959517,0.00015159,2]
[399863563,1766769032463,-853.19959517,0.00015159,2]
[399863564,1766769032476,-853.19959517,0.00015159,2]
[399863565,1766769032488,-853.19959517,0.00015159,2]
[399863566,1766769032500,-853.19959517,0.00015159,2]
[399863568,1766769032512,-853.19959517,0.00015159,2]
[399863570,1766769032527,-853.19959517,0.00015159,2]
[399863571,1766769032540,-866.32574279,0.00015159,2]
[399863572,1766769032551,-866.32574279,0.00015159,2]
[399863573,1766769032563,-866.32574279,0.00015159,2]
[399863574,1766769032577,-866.32574279,0.00015159,2]
[399863575,1766769032589,-866.32574279,0.00015159,2]
[399863576,1766769032601,-866.32574279,0.00015159,2]
[399863577,1766769032614,-866.32574279,0.00015159,2]
[399863578,1766769032628,-866.32574279,0.00015159,2]
[399863579,1766769032641,-866.32574279,0.00015159,2]
[399863580,1766769032654,-866.32574279,0.00015159,2]
[399863581,1766769032666,-866.32574279,0.00015159,2]
[399863582,1766769032677,-866.32574279,0.00015159,2]
[399863583,1766769032687,-1531.44034535,0.00015159,2]
[399863584,1766769032698,-332.52124086,0.0001516,2]
[399863585,1766769032710,-300.0,0.00015163,2]
[399863586,1766769032720,-300.0,0.00015163,2]
[399863587,1766769032731,-300.0,0.00015163,2]
[399863588,1766769032742,-300.0,0.00015163,2]
[399863589,1766769032754,-300.0,0.00015163,2]
[399863590,1766769032766,-300.0,0.00015163,2]
[399863591,1766769032778,-300.0,0.00015163,2]
[399863592,1766769032791,-300.0,0.00015163,2]
[399863593,1766769032805,-300.0,0.00015163,2]
[399863594,1766769032818,-300.0,0.00015163,2]
[399863595,1766769032830,-300.0,0.00015163,2]
[399863596,1766769032842,-300.0,0.00015163,2]
[399863597,1766769032853,-300.0,0.00015163,2]
[399863598,1766769032865,-300.0,0.00015163,2]
[399863599,1766769032875,-300.0,0.00015163,2]
[399863600,1766769032887,-7355.3171639,0.00015874,2]
[399863601,1766769032899,-818.71823492,0.00015934,2]
[399863602,1766769032911,-1352.4422194,0.00016034,2]
[399863603,1766769032923,-171.6842268,0.00016512,2]
[399863604,1766769032934,-420.0,0.00016587,2]
[399863605,1766769032947,-216.038,0.00016843,2]
[399863606,1766769032959,-2161.0,0.00016843,2]
[399863607,1766769032971,-633.0,0.00016843,2]
[399863608,1766769032982,-6131.27556912,0.00016889,2]
[399863609,1766769032994,-1041.66666667,0.0001697,2]
[399863610,1766769033005,-500.0,0.0001697,2]
[399863611,1766769033016,-392.37506421,0.0001716,2]
[399863612,1766769033029,-395.2536569,0.00017342,2]
[399863613,1766769033040,-600.0,0.00017703,2]
[399863614,1766769033052,-545.74,0.00017937,2]
[399863615,1766769033063,-818.71823489,0.00017961,2]
[399863616,1766769033076,-587.0,0.00018151,2]
[399863617,1766769033088,-449.58403507,0.00018281,2]
[399863618,1766769033101,-461.67526834,0.00018281,2]
[399863619,1766769033115,-500.0,0.00018281,2]
[399863620,1766769033127,-500.0,0.00018281,2]
[399863621,1766769033138,-500.0,0.00018281,2]
[399863622,1766769033149,-329.95937148,0.00018281,2]
[399863623,1766769033161,-500.0,0.00018281,2]
[399863624,1766769033173,-500.0,0.00018281,2]